fUST/lending_fUST_20251103
["ID","MTS","AMOUNT","RATE_DAILY","PERIOD"]
[392951208,1762168235585,-200.0,0.00042,120]
[392951209,1762168235595,-860.86,0.00042052,120]
[392951210,1762168235605,-1909.12,0.00042087,30]
[392951211,1762168235616,-860.86,0.00042152,120]
[392951212,1762168235627,-2400.0,0.00042192,60]
[392951213,1762168235638,-860.86,0.00042252,120]
[392951214,1762168235648,-351.0,0.0004227,120]
[392951215,1762168235660,-200.0,0.000423,120]
[392951216,1762168235671,-200.0,0.000423,120]
[392951217,1762168235681,-200.0,0.000423,120]
[392951218,1762168235691,-140234.96,0.00042352,13]
[392951219,1762168235703,-860.86,0.00042352,120]
[392951220,1762168235715,-11252.657475,0.0004237,3]
[392951221,1762168235726,-1363.0255888,0.0004237,3]
[392951222,1762168235736,-2012.47924223,0.000424,120]
[392951223,1762168235747,-860.86,0.00042452,120]
[392951224,1762168235758,-860.86,0.00042552,120]
[392951225,1762168235769,-151.0,0.000426,13]
[392951226,1762168235780,-150.0,0.00042609,2]
[392951227,1762168235791,-860.86,0.00042652,120]
[392951228,1762168235802,-10470.75,0.00042654,7]
[392951229,1762168235813,-158.311101,0.00042678,60]
[392951230,1762168235824,-520.64,0.000427,14]
[392951231,1762168235836,-1658.86,0.000427,36]
[392951232,1762168235847,-860.86,0.00042752,120]
[392951233,1762168235857,-11252.657475,0.0004279,3]
[392951234,1762168235867,-1363.0255888,0.0004279,3]
[392951235,1762168235876,-30604.0,0.000428,120]
[392951236,1762168235887,-2469.0,0.000428,14]
[392951237,1762168235897,-860.86,0.00042852,120]
[392951238,1762168235907,-234.67847402,0.000429,2]
[392951239,1762168235917,-97635.22,0.00042952,13]
[392951240,1762168235927,-860.86,0.00042952,120]
[392951241,1762168235937,-11252.657475,0.0004298,3]
[392951242,1762168235949,-1363.0255888,0.0004298,3]
[392951244,1762168235960,-56263.2873748,0.0004299,3]
[392951245,1762168235971,-6815.127944,0.0004299,3]
[392951246,1762168235983,-1000.0,0.00043,120]
[392951247,1762168235994,-198.0,0.00043,120]
[392951248,1762168236004,-150.0,0.00043,120]
[392951249,1762168236015,-52015.84847578,0.00043,2]
[392951250,1762168236098,-31693.47992109,0.00043,2]
[392951251,1762168236110,-45630.97296152,0.00043,2]
[392951275,1762168238289,-160.0,0.000384,30]
[392951276,1762168238300,-140.78393599,0.00043,2]
[392951277,1762168238314,-1113.2095471,0.00043,2]
[392951278,1762168238326,-14787.75499312,0.00043,2]
[392951280,1762168238338,-274.26608513,0.00043,2]
[392951282,1762168238350,-314.10186875,0.00043,2]
[392951337,1762168240843,-3e-08,0.00043,2]
[392951338,1762168240854,-16173.47699228,0.00043,2]
[392951365,1762168243571,-1940.55086211,0.00043,2]
[392953206,1762169432526,-179.96,0.00020348,2]
[392953208,1762169432536,-237.20503418,0.00020348,2]
[392953209,1762169432579,-55.79496582,0.00020348,2]
[392953210,1762169432588,-359.92,0.00022198,2]
[392953211,1762169432598,-255.31459817,0.00024047,2]
[392953229,1762169438447,-284.57540183,0.00024047,2]
[392953230,1762169438457,-118.91522589,0.00024899,2]
[392953231,1762169438707,-2432.97752689,0.00024899,2]
[392953232,1762169438718,-719.85,0.00025897,2]
[392953233,1762169438727,-158.311101,0.00026362,20]
[392953234,1762169438736,-169.43549047,0.00026458,2]
[392953235,1762169438745,-160.0,0.00026553,2]
[392953236,1762169438755,-500.0,0.00026803,2]
[392953237,1762169438764,-410.38779156,0.00026803,2]
[392953238,1762169438773,-500.0,0.00026803,2]
[392953239,1762169438784,-500.0,0.00026803,2]
[392953240,1762169438794,-500.0,0.00026803,2]
[392953241,1762169438803,-500.0,0.00026803,2]
[392953242,1762169438812,-500.0,0.00026803,2]
[392953243,1762169438822,-500.0,0.00026803,2]
[392953244,1762169438833,-500.0,0.00026803,2]
[392953245,1762169438844,-500.0,0.00026803,2]
[392953246,1762169438854,-437.33712462,0.00026803,2]
[392953247,1762169438864,-500.0,0.00026803,2]
[392953248,1762169438873,-500.0,0.00026803,2]
[392953249,1762169438883,-380.69587641,0.00026803,2]
[392953250,1762169438892,-500.0,0.00026803,2]
[392953251,1762169438902,-300.0,0.00026803,2]
[392953252,1762169438913,-461.55477565,0.00026803,2]
[392953253,1762169438922,-311.72733388,0.00026804,2]
[392953254,1762169438932,-15375.4561423,0.00026805,2]
[392953255,1762169438941,-404.18480381,0.0002698,2]
[392953256,1762169438950,-50000.0,0.00027346,2]
[392953257,1762169438960,-899.81,0.00027747,2]
[392953258,1762169438969,-1079.77,0.00029597,2]
[392953259,1762169438978,-1259.74,0.00031447,2]
[392953260,1762169438987,-1439.7,0.00033296,2]
[392953261,1762169438996,-1619.66,0.00035146,2]
[392953262,1762169439006,-1268.5550905,0.00036033,2]
[392953263,1762169439016,-203.85080512,0.0003621,2]
[392953264,1762169439026,-265.15343564,0.0003624,2]
[392953265,1762169439035,-1799.62,0.00036996,2]
[392953266,1762169439044,-160.0,0.00037228,2]
[392953267,1762169439054,-205.33006224,0.0003744,2]
[392953268,1762169439064,-1222.0,0.00037537,30]
[392953269,1762169439073,-5000.0,0.0003754,60]
[392953270,1762169439087,-1324.09079891,0.0003754,2]
[392953271,1762169439096,-300.0,0.0003754,2]
[392953272,1762169439105,-813.51575764,0.0003754,2]
[392953273,1762169439115,-259.41699475,0.0003754,2]
[392953274,1762169439124,-2102.2046456,0.0003754,2]
[392953275,1762169439133,-328.54844793,0.0003754,2]
[392953276,1762169439142,-293.22164984,0.0003754,2]
[392953277,1762169439151,-640.24483136,0.0003754,2]
[392953278,1762169439160,-1368.25960375,0.0003754,2]
[392953279,1762169439169,-157.35808161,0.0003754,2]
[392953280,1762169439179,-705.86182882,0.0003754,2]
[392953281,1762169439188,-158.36210987,0.0003754,2]
[392953282,1762169439198,-1725.31690619,0.0003754,2]
[392953283,1762169439207,-2086.36011463,0.0003754,2]
[392953284,1762169439217,-510.05759523,0.0003754,2]
[392953285,1762169439228,-180.17219602,0.0003754,2]
[392953286,1762169439237,-470.13252253,0.0003754,2]
[392953287,1762169439247,-190.05719287,0.0003754,2]
[392953288,1762169439257,-991.62452541,0.0003754,2]
[392953289,1762169439267,-215.90434038,0.0003754,2]
[392953290,1762169439283,-984.71915294,0.0003754,2]
[392953291,1762169439293,-1403.48501435,0.0003754,2]
[392953292,1762169439303,-654.24775564,0.0003754,2]
[392953293,1762169439313,-203.92345159,0.0003754,2]
[392953294,1762169439324,-1456.83508724,0.0003754,2]
[392953295,1762169439334,-386.65578799,0.0003754,2]
[392953296,1762169439344,-202.29262837,0.0003754,2]
[392953297,1762169439353,-167.35296001,0.0003754,2]
[392953298,1762169439363,-366.34494821,0.0003754,2]
[392953299,1762169439373,-151.04708546,0.0003754,2]
[392953300,1762169439382,-259.75114584,0.0003754,2]
[392953301,1762169439392,-2019.62846348,0.0003754,2]
[392953302,1762169439401,-1668.23891916,0.0003754,2]
[392953303,1762169439411,-1000.0,0.0003754,20]
[392953304,1762169439421,-312.39,0.000376,7]
[392953305,1762169439436,-340.7563972,0.00038043,3]
[392953306,1762169439446,-158.311101,0.00038691,2]
[392953307,1762169439455,-205.33006221,0.00038803,2]
[392953308,1762169439466,-153.0,0.0003937,30]
[392953309,1762169439475,-7220.49072509,0.0004,120]
[392953310,1762169439485,-6.32150127,0.0004,2]
[392953318,1762169440732,-250.0,0.00026803,2]
[392953319,1762169440743,-193.67849873,0.0004,2]
[392953320,1762169440752,-205.33006221,0.00040165,2]
[392953321,1762169440762,-1200.0,0.00041356,60]
[392953322,1762169440772,-205.33006221,0.00041528,2]
[392953323,1762169440781,-1200.0,0.00041904,60]
[392953324,1762169440791,-340.7563972,0.0004199,3]
[392953325,1762169440800,-36404.90497965,0.00042,50]
[392953344,1762169446544,-694.55623735,0.00042,50]
[392953345,1762169446555,-433.33392263,0.00042452,60]
[392953346,1762169446705,-766.66607737,0.00042452,60]
[392953347,1762169446714,-1184.9,0.000426,36]
[392953348,1762169446723,-592.44,0.000427,36]
[392953349,1762169446731,-3177.1832072,0.00042774,2]
[392953350,1762169446740,-1276.2333971,0.00042774,2]
[392953351,1762169446749,-163.57,0.00042795,120]
[392953352,1762169446758,-3308.34677518,0.0004289,3]
[392953425,1762169654544,648.54,0.00037542,60]
[392953426,1762169654801,648.54,0.00037542,60]
[392953427,1762169655038,648.54,0.00037542,60]
[392953430,1762169655306,648.54,0.00037542,60]
[392953431,1762169655558,648.54,0.00037542,60]
[392953432,1762169655935,648.54,0.00037542,60]
[392953433,1762169656303,648.54,0.00037542,60]
[392953434,1762169656587,648.54,0.00037542,60]
[392953435,1762169656830,648.54,0.00037542,60]
[392953436,1762169657065,648.54,0.00037542,60]
[392953437,1762169657412,648.54,0.00037542,60]
[392953438,1762169657659,648.54,0.00037542,60]
[392953439,1762169657883,648.54,0.00037542,60]
[392953440,1762169658139,648.54,0.00037542,60]
[392953441,1762169658372,648.54,0.00037542,60]
[392953442,1762169658631,648.54,0.00037542,60]
[392953443,1762169658868,648.54,0.00037542,60]
[392953445,1762169659106,648.54,0.00037542,60]
[392953446,1762169659434,648.54,0.00037542,60]
[392953447,1762169660106,648.54,0.00037542,60]
[392953448,1762169660344,648.54,0.00037542,120]
[392953449,1762169660588,648.54,0.00037542,120]
[392953450,1762169660815,648.54,0.00037542,120]
[392953451,1762169661057,648.58,0.00037542,120]
[392953714,1762170242539,685.397014,0.00013699,2]
[392953865,1762170631709,-685.397014,0.00020187,2]
[392953867,1762170631720,-117.03775043,0.00025685,30]
[392953872,1762170631762,-522.09341625,0.00025685,30]
[392953905,1762170637628,-5000.0,0.00019786,2]
[392953906,1762170637639,-323.09945642,0.00025685,30]
[392953907,1762170637648,-250.0,0.00026672,2]
[392953908,1762170637658,-500.0,0.00026672,2]
[392953909,1762170637668,-500.0,0.00026672,2]
[392953910,1762170637678,-200.0,0.00026672,2]
[392953911,1762170637688,-500.0,0.00026672,2]
[392953912,1762170637697,-157.95053063,0.00026672,2]
[392953913,1762170637706,-404.18480381,0.00026672,2]
[392953914,1762170637716,-229.81660914,0.00026673,2]
[392953923,1762170639931,-408.18339086,0.00026673,2]
[392953924,1762170639940,-300.0,0.00026674,2]
[392953925,1762170639949,-685.397014,0.00026676,2]
[392953926,1762170639958,-218.20913371,0.00026847,2]
[392953927,1762170639968,-13388.21046143,0.00026848,2]
[392953928,1762170639984,-1440.0,0.00026848,2]
[392954128,1762170676062,6631.88,0.000184,2]
[392954155,1762171101154,2475.66,0.00037543,60]
[392954156,1762171101391,2475.66,0.00037543,60]
[392954157,1762171101692,2475.66,0.00037543,60]
[392954158,1762171101941,2475.66,0.00037543,60]
[392954159,1762171102201,2475.66,0.00037543,60]
[392954160,1762171102440,2475.66,0.00037543,60]
[392954161,1762171102783,2475.66,0.00037543,60]
[392954162,1762171103019,2475.66,0.00037543,60]
[392954163,1762171103310,2475.66,0.00037543,60]
[392954164,1762171103549,2475.66,0.00037543,60]
[392954165,1762171103787,2475.66,0.00037543,60]
[392954166,1762171104082,2475.66,0.00037543,60]
[392954167,1762171104332,2475.66,0.00037543,60]
[392954168,1762171104586,2475.66,0.00037543,60]
[392954169,1762171104821,2475.66,0.00037543,60]
[392954170,1762171105056,2475.66,0.00037543,60]
[392954171,1762171105304,2475.66,0.00037543,60]
[392954172,1762171105535,2475.66,0.00037543,60]
[392954173,1762171105790,2475.66,0.00037543,60]
[392954174,1762171106016,2475.66,0.00037543,60]
[392954175,1762171106260,2475.66,0.00037543,120]
[392954176,1762171106492,2475.66,0.00037543,120]
[392954177,1762171106733,2475.66,0.00037543,120]
[392954178,1762171106988,2475.8104324,0.00037543,120]
[392954187,1762171680645,153.01,0.00016234,3]
[392954221,1762171837786,-1242.58776985,0.00023865,2]
[392954225,1762171840191,-3757.41223015,0.00023865,2]
[392954226,1762171840202,-418.66929077,0.00024106,2]
[392954227,1762171840211,-307.8763814,0.00024349,2]
[392954228,1762171840221,-160.0,0.00024453,2]
[392954229,1762171840230,-160.0,0.00024453,2]
[392954230,1762171840240,-404.18480381,0.00024454,2]
[392954231,1762171840249,-150.0,0.00024454,2]
[392954232,1762171840259,-438.0,0.00024456,2]
[392954233,1762171840268,-174.45411831,0.000245,2]
[392954234,1762171840278,-380.0,0.00024682,2]
[392954235,1762171840287,-2123.04731068,0.00025939,2]
[392954236,1762171840296,-2123.04731068,0.00026212,2]
[392954237,1762171840306,-197.03,0.00026239,10]
[392954238,1762171840315,-500.0,0.00026248,2]
[392954239,1762171840324,-500.0,0.00026248,2]
[392954240,1762171840334,-500.0,0.00026248,2]
[392954241,1762171840344,-500.0,0.00026248,2]
[392954242,1762171840354,-500.0,0.00026248,2]
[392954243,1762171840363,-500.0,0.00026248,2]
[392954244,1762171840372,-500.0,0.00026248,2]
[392954245,1762171840381,-500.0,0.00026248,2]
[392954246,1762171840390,-500.0,0.00026248,2]
[392954247,1762171840399,-500.0,0.00026248,2]
[392954248,1762171840409,-500.0,0.00026248,2]
[392954249,1762171840418,-211.90138253,0.00026248,2]
[392954250,1762171840427,-500.0,0.00026248,2]
[392954251,1762171840436,-500.0,0.00026248,2]
[392954252,1762171840445,-500.0,0.00026248,2]
[392954253,1762171840455,-500.0,0.00026248,2]
[392954254,1762171840463,-500.0,0.00026248,2]
[392954255,1762171840473,-500.0,0.00026248,2]
[392954256,1762171840482,-500.0,0.00026248,2]
[392954257,1762171840491,-500.0,0.00026248,2]
[392954258,1762171840500,-500.0,0.00026248,2]
[392954259,1762171840510,-500.0,0.00026248,2]
[392954260,1762171840519,-436.77371444,0.00026248,2]
[392954261,1762171840528,-500.0,0.00026248,2]
[392954262,1762171840540,-500.0,0.00026248,2]
[392954263,1762171840550,-500.0,0.00026248,2]
[392954264,1762171840560,-500.0,0.00026248,2]
[392954265,1762171840570,-500.0,0.00026248,2]
[392954266,1762171840579,-500.0,0.00026248,2]
[392954267,1762171840588,-500.0,0.00026248,2]
[392954268,1762171840598,-500.0,0.00026248,2]
[392954269,1762171840608,-500.0,0.00026248,2]
[392954270,1762171840618,-500.0,0.00026248,2]
[392954271,1762171840627,-500.0,0.00026248,2]
[392954272,1762171840637,-500.0,0.00026248,2]
[392954273,1762171840645,-325.84495162,0.00026248,2]
[392954274,1762171840655,-500.0,0.00026248,2]
[392954275,1762171840665,-427.4665515,0.00026248,2]
[392954283,1762171842972,-72.5334485,0.00026248,2]
[392954284,1762171842983,-500.0,0.00026248,2]
[392954285,1762171842993,-500.0,0.00026248,2]
[392954286,1762171843002,-500.0,0.00026248,2]
[392954287,1762171843012,-500.0,0.00026248,2]
[392954288,1762171843021,-500.0,0.00026248,2]
[392954289,1762171843032,-500.0,0.00026248,2]
[392954290,1762171843042,-500.0,0.00026248,2]
[392954291,1762171843052,-303.9674697,0.00026248,2]
[392954292,1762171843062,-500.0,0.00026248,2]
[392954293,1762171843072,-500.0,0.00026248,2]
[392954294,1762171843082,-497.99028448,0.00026248,2]
[392954296,1762171843094,-2.00971552,0.00026248,2]
[392954297,1762171843104,-254.19028448,0.00026248,2]
[392954299,1762171867578,151.0,0.00037553,120]
[392954300,1762171868220,156.587,0.00037553,120]
[392954301,1762171868833,162.380719,0.00037553,120]
[392954302,1762171869479,168.3888056,0.00037553,120]
[392954303,1762171870126,174.61919141,0.00037553,120]
[392954304,1762171870715,181.08010149,0.00037553,120]
[392954305,1762171871379,187.78006525,0.00037553,120]
[392954306,1762171872004,194.72792766,0.00037553,120]
[392954307,1762171872698,201.93286099,0.00037553,120]
[392954308,1762171873332,209.40437684,0.00037553,120]
[392954309,1762171873953,217.15233878,0.00037553,120]
[392954310,1762171874585,225.18697532,0.00037553,120]
[392954311,1762171875679,233.51889341,0.00037553,120]
[392954312,1762171876337,242.15909246,0.00037553,120]
[392954313,1762171876961,242.15909246,0.00037553,120]
[392954325,1762172204516,343.98128635,0.00037552,60]
[392954342,1762172505923,258.51176,0.00037553,20]
[392954343,1762172507160,230.53703837,0.00037553,60]
[392954345,1762172522159,500.0,0.00037553,60]
[392954346,1762172522408,500.0,0.00037553,60]
[392954347,1762172522641,500.0,0.00037553,60]
[392954348,1762172522962,500.0,0.00037553,60]
[392954349,1762172523120,500.0,0.00037553,60]
[392954350,1762172523358,500.0,0.00037553,60]
[392954351,1762172523586,645.1,0.00037553,60]
[392954352,1762172534904,500.0,0.00037553,60]
[392954353,1762172535156,500.0,0.00037553,60]
[392954354,1762172535393,500.0,0.00037553,60]
[392954355,1762172535664,500.0,0.00037553,60]
[392954356,1762172535902,500.0,0.00037553,60]
[392954357,1762172536178,500.0,0.00037553,60]
[392954358,1762172536418,500.0,0.00037553,60]
[392954359,1762172536661,482.59076125,0.00037553,60]
[392954360,1762172551120,500.0,0.00037553,60]
[392954361,1762172551379,162.2,0.00037553,60]
[392954362,1762172555285,500.0,0.00037553,60]
[392954363,1762172555744,500.0,0.00037553,60]
[392954364,1762172556116,500.0,0.00037553,60]
[392954365,1762172556392,500.0,0.00037553,60]
[392954366,1762172556650,500.0,0.00037553,60]
[392954367,1762172557010,500.0,0.00037553,60]
[392954368,1762172557246,500.0,0.00037553,60]
[392954369,1762172557479,561.13,0.00037553,60]
[392954371,1762172569837,500.0,0.00037553,60]
[392954372,1762172570507,500.0,0.00037553,60]
[392954373,1762172570775,500.0,0.00037553,60]
[392954374,1762172571029,500.0,0.00037553,60]
[392954375,1762172571496,500.0,0.00037553,60]
[392954376,1762172571754,500.0,0.00037553,60]
[392954377,1762172572139,500.0,0.00037553,60]
[392954378,1762172572574,500.0,0.00037553,60]
[392954379,1762172572818,500.0,0.00037553,60]
[392954380,1762172573084,500.0,0.00037553,60]
[392954381,1762172573335,500.0,0.00037553,60]
[392954382,1762172573596,500.0,0.00037553,60]
[392954383,1762172573850,470.29657925,0.00037553,60]
[392954384,1762172594172,500.0,0.00037553,60]
[392954385,1762172594413,500.0,0.00037553,60]
[392954386,1762172594818,325.61740742,0.00037553,60]
[392954387,1762172606763,500.0,0.00037553,60]
[392954388,1762172607013,300.04185911,0.00037553,60]
[392954389,1762172610344,500.0,0.00037553,60]
[392954390,1762172610936,500.0,0.00037553,60]
[392954391,1762172611188,500.0,0.00037553,60]
[392954392,1762172611428,500.0,0.00037553,60]
[392954393,1762172611665,500.0,0.00037553,60]
[392954394,1762172611873,500.0,0.00037553,60]
[392954395,1762172611954,462.25,0.00037553,60]
[392954396,1762172612104,500.0,0.00037553,60]
[392954397,1762172612356,500.0,0.00037553,60]
[392954398,1762172612600,271.33,0.00037553,60]
[392954399,1762172640518,500.0,0.00037553,60]
[392954400,1762172640780,500.0,0.00037553,60]
[392954401,1762172641029,500.0,0.00037553,60]
[392954402,1762172641281,500.0,0.00037553,60]
[392954403,1762172641729,500.0,0.00037553,60]
[392954404,1762172641988,500.0,0.00037553,60]
[392954405,1762172642248,500.0,0.00037553,60]
[392954406,1762172642544,500.0,0.00037553,60]
[392954407,1762172642861,500.0,0.00037553,60]
[392954408,1762172643049,500.0,0.00037553,60]
[392954409,1762172643284,500.0,0.00037553,60]
[392954410,1762172643520,500.0,0.00037553,60]
[392954411,1762172643867,313.6,0.00037553,60]
[392954413,1762172645479,500.0,0.00037553,60]
[392954414,1762172645712,500.0,0.00037553,60]
[392954415,1762172645944,500.0,0.00037553,60]
[392954416,1762172646182,500.0,0.00037553,60]
[392954417,1762172646434,553.69,0.00037553,60]
[392954419,1762172719264,151.0,0.00037559,120]
[392954420,1762172720475,156.587,0.00037559,120]
[392954421,1762172721121,162.380719,0.00037559,120]
[392954422,1762172721884,168.3888056,0.00037559,120]
[392954423,1762172722584,174.61919141,0.00037559,120]
[392954424,1762172723026,500.0,0.00037559,60]
[392954425,1762172723229,181.08010149,0.00037559,120]
[392954426,1762172723335,500.0,0.00037559,60]
[392954427,1762172723523,500.0,0.00037559,60]
[392954428,1762172723814,500.0,0.00037559,60]
[392954429,1762172723977,181.08010149,0.00037559,120]
[392954430,1762172724075,500.0,0.00037559,60]
[392954431,1762172724264,500.0,0.00037559,60]
[392954432,1762172724505,500.0,0.00037559,60]
[392954433,1762172724731,500.0,0.00037559,60]
[392954434,1762172724963,500.0,0.00037559,60]
[392954435,1762172725191,500.0,0.00037559,60]
[392954436,1762172725460,500.0,0.00037559,60]
[392954437,1762172725692,500.0,0.00037559,60]
[392954438,1762172725926,500.0,0.00037559,60]
[392954439,1762172726174,500.0,0.00037559,60]
[392954440,1762172726411,508.16,0.00037559,60]
[392954441,1762172734147,500.0,0.00037559,60]
[392954442,1762172734257,500.0,0.00037559,60]
[392954443,1762172734519,500.0,0.00037559,60]
[392954444,1762172734749,500.0,0.00037559,60]
[392954445,1762172735107,500.0,0.00037559,60]
[392954446,1762172735364,500.0,0.00037559,60]
[392954447,1762172735605,500.0,0.00037559,60]
[392954448,1762172735841,500.0,0.00037559,60]
[392954449,1762172736103,500.0,0.00037559,60]
[392954450,1762172736353,500.0,0.00037559,60]
[392954451,1762172736586,500.0,0.00037559,60]
[392954452,1762172736823,500.0,0.00037559,60]
[392954453,1762172737062,500.0,0.00037559,60]
[392954454,1762172737437,500.0,0.00037559,60]
[392954455,1762172737671,500.0,0.00037559,60]
[392954456,1762172737907,500.0,0.00037559,60]
[392954457,1762172738433,500.0,0.00037559,60]
[392954458,1762172738675,500.0,0.00037559,60]
[392954459,1762172738911,500.0,0.00037559,60]
[392954460,1762172739145,500.0,0.00037559,60]
[392954461,1762172739407,500.0,0.00037559,120]
[392954462,1762172740296,291.8,0.00037559,120]
[392954463,1762172760659,545.27243772,0.00037559,60]
[392954464,1762172760864,500.0,0.00037559,60]
[392954465,1762172761103,500.0,0.00037559,60]
[392954466,1762172761344,500.0,0.00037559,60]
[392954467,1762172761620,500.0,0.00037559,60]
[392954468,1762172761854,500.0,0.00037559,60]
[392954469,1762172762102,500.0,0.00037559,60]
[392954470,1762172762360,500.0,0.00037559,60]
[392954471,1762172762700,500.0,0.00037559,60]
[392954472,1762172762943,500.0,0.00037559,60]
[392954473,1762172763214,500.0,0.00037559,60]
[392954474,1762172763458,309.15242636,0.00037559,60]
[392954475,1762172769269,500.0,0.00037559,60]
[392954476,1762172769498,500.0,0.00037559,60]
[392954477,1762172769728,500.0,0.00037559,60]
[392954478,1762172769819,6179.9,0.000328,120]
[392954479,1762172770011,500.0,0.00037559,60]
[392954480,1762172770264,490.8,0.00037559,60]
[392954482,1762172779039,1000.0,0.00037559,120]
[392954483,1762172779292,1000.0,0.00037559,120]
[392954484,1762172779529,1000.0,0.00037559,120]
[392954485,1762172779762,1000.0,0.00037559,120]
[392954486,1762172780342,500.0,0.00037559,120]
[392954487,1762172788215,268.4602565,0.00037559,60]
[392954489,1762172847477,500.0,0.00037559,60]
[392954490,1762172847700,500.0,0.00037559,60]
[392954491,1762172847998,500.0,0.00037559,60]
[392954492,1762172848263,500.0,0.00037559,60]
[392954493,1762172848508,250.81318833,0.00037559,60]
[392954495,1762172884307,500.0,0.00037559,60]
[392954496,1762172884561,500.0,0.00037559,60]
[392954497,1762172884797,500.0,0.00037559,60]
[392954498,1762172885014,236.04,0.00037559,60]
[392954499,1762172905446,266.36,0.00037559,60]
[392954500,1762172907032,811.602985,0.00013699,2]
[392954501,1762172911103,500.0,0.00037559,60]
[392954502,1762172911359,500.0,0.00037559,60]
[392954503,1762172911648,500.0,0.00037559,60]
[392954504,1762172911880,500.0,0.00037559,60]
[392954506,1762172912118,500.0,0.00037559,60]
[392954507,1762172912352,500.0,0.00037559,60]
[392954508,1762172912578,351.92,0.00037559,60]
[392954509,1762172913754,22208.82818028,0.00037559,30]
[392954510,1762172915850,500.0,0.00037559,60]
[392954511,1762172916098,500.0,0.00037559,60]
[392954512,1762172916353,500.0,0.00037559,60]
[392954513,1762172916585,500.0,0.00037559,60]
[392954514,1762172916815,277.32,0.00037559,60]
[392954515,1762172985611,12662.75716027,0.00037562,20]
[392954516,1762172990466,500.0,0.00037562,60]
[392954517,1762172990703,500.0,0.00037562,60]
[392954518,1762172990960,500.0,0.00037562,60]
[392954519,1762172991250,500.0,0.00037562,60]
[392954520,1762172991499,608.77,0.00037562,60]
[392954522,1762172999019,500.0,0.00037562,60]
[392954523,1762172999249,500.0,0.00037562,60]
[392954524,1762172999479,500.0,0.00037562,60]
[392954525,1762172999702,500.0,0.00037562,60]
[392954526,1762172999929,500.0,0.00037562,60]
[392954527,1762173000166,500.0,0.00037562,60]
[392954528,1762173000433,500.0,0.00037562,60]
[392954529,1762173000675,500.0,0.00037562,60]
[392954530,1762173000907,500.0,0.00037562,60]
[392954531,1762173001148,500.0,0.00037562,60]
[392954532,1762173001391,500.0,0.00037562,60]
[392954533,1762173001629,500.0,0.00037562,60]
[392954534,1762173001863,500.0,0.00037562,60]
[392954535,1762173002476,500.0,0.00037562,60]
[392954536,1762173002722,500.0,0.00037562,60]
[392954537,1762173002980,500.0,0.00037562,60]
[392954538,1762173003276,500.0,0.00037562,60]
[392954539,1762173003509,500.0,0.00037562,60]
[392954540,1762173003795,500.0,0.00037562,60]
[392954541,1762173004028,560.16885493,0.00037562,60]
[392954595,1762173032492,-717.68294059,0.00020087,2]